Cogmind - Beta 13 @@@ ROGUE MODE // 2024.04.15 @ 18:48:25 Player: Millea Result: Destroyed by S-27 Virus with Autogun Performance ------------- Evolutions (3) 1500 Regions Visited (8) 1600 Robots Destroyed (68) 340 Value Destroyed (2175) 2175 Prototype IDs (15) 300 Alien Tech Used (0) 0 Bonus (330) 330 TOTAL SCORE: 6245 Bonus ------- High Alert Combat Kills 30 Met Data Miner 300 Cogmind --------- Core Integrity 0/700 Matter 233/300 Energy 90/100 System Corruption 1% Temperature Cool (1) Movement Flying (40) Location -6/Proximity Caves Parts ------- > --- POWER (1) -------- (None) > --- PROPULSION (6) --- Improved Flight Unit > --- UTILITY (4) ------ Deep Network Scanner Ghost Barrier > --- WEAPON (2) ------- (None) > --- INVENTORY (5) ---- Hacking Suite Remote Datajack Multitool Peak State ------------ > --- POWER ------------ Deuterium Engine > --- PROPULSION ------- Light Treads Light Treads Light Treads Improved Treads Improved Titanium Leg Armored Wheel > --- UTILITY ---------- Huge Storage Unit Hardened Medium Armor Plating Hardened Medium Armor Plating Hacking Suite > --- WEAPON ----------- Lightning Gun Gatling Laser > --- INVENTORY -------- Flight Unit Flight Unit Flight Unit Improved Flight Unit Improved Flight Unit Disposable Heat Sink Large Storage Unit Advanced Weight Redist. System Subdweller Optics Improved Signal Interpreter Advanced Terrain Scan Processor Weapon Shielding Light Armor Plating Hardened Medium Armor Plating Hardened Medium Armor Plating Hardened Medium Armor Plating Improved Light Armor Plating Hacking Suite Subdweller Beam Cannon Light Assault Rifle Subdweller Machine Gun Flak Gun Multitool Mace Scrap Shield Fragment [Rating: 37] Favorites ----------- Power Light Ion Engine Engine Light Ion Engine Power Core Light Nuclear Core Propulsion Light Treads Treads Light Treads Leg Improved Titanium Leg Wheel Wheel Hover Unit Aerolev Unit Flight Unit Flight Unit Utility Huge Storage Unit Device Terrain Scanner Storage Huge Storage Unit Processor Advanced Terrain Scan Processor Hackware Hacking Suite Protection Hardened Medium Armor Plating Weapon Subdweller Machine Gun Energy Gun Medium Laser Energy Cannon Subdweller Beam Cannon Ballistic Gun Subdweller Machine Gun Special Weapon Multitool Impact Weapon Mace Slashing Weapon Great Axe Build | -11 -10 -10 -8 -7 -7 -7 -7 -6 ------- Run | Yrd Mat Sub Mat Fac Low Low Dat Pro Slots Evolved 6 | . . . 4 2 . . . . Power . | . . . . . . . . . Propulsion 4 | . . . 2 2 . . . . Utility 2 | . . . 2 . . . . . Weapon . | . . . . . . . . . Parts Attached 124 | 6 4 11 25 48 5 16 7 2 Power 6 | 1 . . 3 1 . 1 . . Engine 5 | 1 . . 3 1 . . . . Core 1 | . . . . . . 1 . . Reactor . | . . . . . . . . . Propulsion 43 | 2 2 5 10 16 1 7 . . Treads 18 | . 2 1 7 7 1 . . . Leg 8 | 2 . 2 2 2 . . . . Wheel 5 | . . 2 1 1 . 1 . . Hover 1 | . . . . 1 . . . . Flight 11 | . . . . 5 . 6 . . Utility 42 | 1 1 2 10 15 1 5 5 2 Device 10 | . . . 2 4 . 4 . . Storage 9 | 1 . 1 1 5 . . 1 . Processor 2 | . . . . 1 1 . . . Hackware 3 | . . . . 1 . . . 2 Protection 18 | . 1 1 7 4 . 1 4 . Artifact . | . . . . . . . . . Weapon 33 | 2 1 4 2 16 3 3 2 . Energy Gun 8 | 1 1 . . 4 . 2 . . Energy Cannon 3 | . . . 1 1 1 . . . Ballistic Gun 15 | 1 . 4 1 6 2 1 . . Ballistic Cannon . | . . . . . . . . . Launcher . | . . . . . . . . . Special Weapon 4 | . . . . 4 . . . . Impact Weapon 2 | . . . . 1 . . 1 . Slashing Weapon 1 | . . . . . . . 1 . Piercing Weapon . | . . . . . . . . . Special Melee Weapon . | . . . . . . . . . Unidentified Prototypes 4 | . . . . 2 . . . 2 Parts Lost 32 | . . 7 3 1 2 11 7 1 Power 5 | . . 1 1 1 . 1 . 1 Propulsion 16 | . . 3 1 . 1 6 5 . Utility 4 | . . 1 . . . 1 2 . Weapon 7 | . . 2 1 . 1 3 . . Highest Loss Streak 8 | . . 3 3 1 1 8 7 8 To Critical Strikes . | . . . . . . . . . Average Slot Usage (%) 79 | . 97 67 94 85 100 60 80 9 Engine 5 | . 14 4 8 6 7 . . . Core 1 | . . . . . . 6 7 2 Treads 12 | . 13 3 22 18 30 1 . . Leg 3 | . 14 1 2 3 7 . . . Wheel 6 | . . 14 8 2 7 5 . . Flight 5 | . . . . 10 . 4 45 7 Device 3 | . . . 4 3 7 6 4 . Storage 9 | . 14 14 9 6 7 7 6 . Processor 2 | . . . . 1 6 7 4 . Hackware 3 | . . . . 4 7 7 . . Protection 5 | . 11 1 20 10 . . 6 . Energy Gun 5 | . 23 5 . 1 5 8 . . Ballistic Gun 8 | . 4 22 13 4 7 . . . Naked Turns . | . . . . . . . . . Heaviest Build 215 | 13 17 209 215 113 106 102 86 5 Greatest Support 83 | 20 40 40 83 83 83 26 26 5 Greatest Overweight (x) 21 | 4 . 20 21 8 8 8 3 . Average Overweight (x) 4 | . . 16 5 1 2 4 2 . Largest Inventory Capacity 35 | 8 8 35 35 25 25 25 25 5 Average Capacity 24 | 7 8 32 25 20 25 25 21 5 Most Carried 25 | 4 7 25 25 25 25 25 20 5 Average Carried 19 | 3 6 19 21 18 24 23 14 4 Final Capacity 35 | 8 8 35 25 25 25 25 5 5 Final Carried 25 | 4 7 25 23 25 25 20 5 3 Class Distribution -------------------- 40% | Scavenger-Mutant 37% | Mutant 21% | Hauler-Mutant Dominant Class ---------------- Mutant | -10/Materials Hauler-Mutant | -10/Subcaves Scavenger-Mutant | -8/Materials Scavenger-Mutant | -7/Factory Scavenger-Mutant | -7/Lower Caves Mutant | -7/Lower Caves Scavenger-Mutant | -7/Data Miner Mutant | -6/Proximity Caves Resources | -11 -10 -10 -8 -7 -7 -7 -7 -6 ----------- Run | Yrd Mat Sub Mat Fac Low Low Dat Pro Matter Collected 2084 | 179 113 235 619 440 316 157 . 25 Remotely . | . . . . . . . . . Salvage Created 2576 | . 140 347 1085 539 275 165 25 . Parts 147 | . 9 20 58 35 12 10 3 . Haulers Intercepted 5 | . 2 . 2 1 . . . . Recyclers Shooed . | . . . . . . . . . Parts Field Recycled . | . . . . . . . . . Retrieved Matter . | . . . . . . . . . Parts Self-Destructed 31 | . . 12 . . 6 11 . 2 Prevented 4 | . . . . . 3 1 . . Kills | -11 -10 -10 -8 -7 -7 -7 -7 -6 ------- Run | Yrd Mat Sub Mat Fac Low Low Dat Pro Combat Hostiles Destroyed 48 | . . 7 23 7 6 5 . . Guns 42 | . . 7 18 6 6 5 . . Cannons 5 | . . . 4 1 . . . . Classes Destroyed 14 | . 2 3 5 2 1 1 . . Worker 4 | . . . 2 2 . . . . Builder 5 | . . . 1 4 . . . . Hauler 5 | . 2 . 2 1 . . . . Recycler 1 | . . . 1 . . . . . Operator 1 | . . . . 1 . . . . Watcher 3 | . 2 . . 1 . . . . Swarmer 8 | . . . 6 . 1 1 . . Grunt 17 | . . . 12 3 1 1 . . Sentry 7 | . . 1 5 . . 1 . . Hunter 1 | . . . . . . 1 . . Programmer 5 | . . . . 4 . 1 . . Artisan 2 | . . 2 . . . . . . Subdweller 6 | . . 6 . . . . . . Thug 1 | . . . . . 1 . . . Fireman 3 | . . . . . 3 . . . Best Kill Streak 7 | . 1 1 7 5 4 2 1 . Combat Bots Only 5 | . . 1 5 3 4 2 . . Max Kills in Single Turn 2 | . 1 1 1 2 1 1 1 . Gunslinging . | . . . . . . . . . Exploded . | . . . . . . . . . Melee . | . . . . . . . . . Uniques/NPCs Destroyed 1 | . . . . . . . 1 . Data Miner (-7/Data Miner) Combat | -11 -10 -10 -8 -7 -7 -7 -7 -6 -------- Run | Yrd Mat Sub Mat Fac Low Low Dat Pro Hostile Shots Fired 508 | . . 72 105 55 76 117 22 61 Missed 176 | . . 17 30 21 26 41 7 34 Damage Taken 5534 | . . 1162 1100 543 679 957 698 395 Core 1076 | . . 237 138 6 98 109 135 353 Absorbed by Shields . | . . . . . . . . . Core Remaining (%) 59 | 100 . 5 74 . . . . . Volleys Fired 251 | 1 12 89 71 29 20 29 . . Largest 2 | 2 2 2 2 2 2 2 . . Hottest 165 | 70 100 100 110 110 85 165 . . Shots Fired 435 | 2 24 142 141 44 34 48 . . Gun 396 | 2 24 142 110 43 33 42 . . Cannon 39 | . . . 31 1 1 6 . . Launcher . | . . . . . . . . . Special . | . . . . . . . . . Kinetic 276 | 1 11 88 110 21 20 25 . . Thermal 130 | 1 13 54 31 7 1 23 . . Explosive . | . . . . . . . . . Electromagnetic 29 | . . . . 16 13 . . . Robot Hit Streak 27 | 1 6 27 12 7 8 6 . . Robot Miss Streak 7 | 1 2 2 3 3 3 7 . . Penetration Max . | . . . . . . . . . Secondary Targets 6 | . . . 4 1 1 . . . Max Gunslinging Chain 1 | . . . 1 1 1 . . . Shots Hit Robots 282 | 1 15 85 85 32 27 36 1 . Core Hits 142 | . 8 20 41 30 20 22 1 . Critical Kills 1 | . . . 1 . . . . . Critical Parts Destroyed 2 | . . . . 1 1 . . . Critical Strikes 9 | . . 5 1 1 1 1 . . Burn 6 | . . 5 . . . 1 . . Meltdown 1 | . . . 1 . . . . . Destroy 1 | . . . . . 1 . . . Smash 1 | . . . . 1 . . . . Melee Attacks 9 | . . . . 7 . . 2 . Impact 8 | . . . . 7 . . 1 . Slashing 1 | . . . . . . . 1 . Piercing . | . . . . . . . . . Sneak Attacks 1 | . . . . . . . 1 . Combat Hostiles . | . . . . . . . . . Follow-up Attacks . | . . . . . . . . . Damage Inflicted 5349 | 8 159 887 1984 984 699 548 80 . Guns 4395 | 8 159 887 1489 754 602 496 . . Cannons 583 | . . . 495 36 . 52 . . Explosions 194 | . . . . 97 97 . . . Melee 177 | . . . . 97 . . 80 . Ramming . | . . . . . . . . . Kinetic 3054 | 8 58 440 1489 399 422 238 . . Thermal 1715 | . 101 447 495 265 97 310 . . Explosive . | . . . . . . . . . Electromagnetic 403 | . . . . 223 180 . . . Impact 97 | . . . . 97 . . . . Slashing 80 | . . . . . . . 80 . Piercing . | . . . . . . . . . Highest Corruption 5 | . 3 3 . 5 5 5 1 1 Average Corruption 2 | . 2 3 . 1 5 1 1 1 Corruption Purged 4 | . . . . . . 4 . . Corruption Blocked . | . . . . . . . . . Effects 90 | . 5 36 . 8 22 15 3 1 Message Errors 20 | . 1 5 . 3 10 . 1 . Matter Fused 23 | . 1 13 . 1 5 2 1 . Heat Flow Errors 14 | . 1 7 . 1 1 3 . 1 Energy Discharges 13 | . 1 4 . 2 2 4 . . Parts Fused 1 | . . . . . . . 1 . Data Loss (minor) 7 | . 1 1 . . 2 3 . . Data Loss (major) 3 | . . 2 . 1 . . . . Misfires 4 | . . 2 . . 1 1 . . Alerts 3 | . . 1 . . 1 1 . . Weapon Failures 2 | . . 1 . . . 1 . . Overload Shots . | . . . . . . . . . Overflow Damage 64 | . . . 5 59 . . . . Projectiles 5 | . . . 5 . . . . . Explosions . | . . . . . . . . . Melee 59 | . . . . 59 . . . . Knockbacks . | . . . . . . . . . Impact . | . . . . . . . . . Kinetic . | . . . . . . . . . Secondary . | . . . . . . . . . Self-Inflicted Damage 39 | . . . . 39 . . . . Shots 1 | . . . . 1 . . . . Rammed . | . . . . . . . . . Targets Rammed . | . . . . . . . . . Kicked . | . . . . . . . . . Crushed . | . . . . . . . . . Highest Temperature 307 | 30 265 252 214 292 277 307 8 112 Average Temperature 92 | 18 42 47 102 65 120 122 5 66 Received Heat Transfer 1538 | . . 258 540 99 455 186 . . Effects 3 | . . . . . . 3 . . Interference 3 | . . . . . . 3 . . Siege Activations . | . . . . . . . . . Robots Corrupted . | . . . . . . . . . Combat Hostiles . | . . . . . . . . . Parts Fried 1 | . . . . 1 . . . . Impact Corruptions 1 | . . . . 1 . . . . Robots Melted 1 | . . . 1 . . . . . Combat Hostiles 1 | . . . 1 . . . . . Parts Melted 12 | . . 5 3 3 . 1 . . Heat Transferred 4025 | . 296 1702 666 437 150 774 . . Parts Sabotaged . | . . . . . . . . . Parts Stolen . | . . . . . . . . . Parts Stripped . | . . . . . . . . . Power Chain Reactions 3 | . . . . 2 1 . . . Alert | -11 -10 -10 -8 -7 -7 -7 -7 -6 ------- Run | Yrd Mat Sub Mat Fac Low Low Dat Pro Peak Influence 556 | . 73 . 556 337 . . . . Initial 252 | . . . . 252 . . . . Average 187 | . 29 . 300 201 . . . . Maximum Alert Level 2 | . . . 2 1 . . . . Low Security (%) 50 | 100 100 . 25 41 . . . . Level 1 39 | . . . 37 58 . . . . Level 2 9 | . . . 36 . . . . . Level 3 . | . . . . . . . . . Level 4 . | . . . . . . . . . Level 5 . | . . . . . . . . . High Security . | . . . . . . . . . Max Security . | . . . . . . . . . Squads Dispatched 11 | . . . 5 6 . . . . Investigation 3 | . . . 1 2 . . . . Extermination 3 | . . . . 3 . . . . Reinforcement 2 | . . . 1 1 . . . . Assault . | . . . . . . . . . Garrison 3 | . . . 3 . . . . . Intercept . | . . . . . . . . . Searches Triggered . | . . . . . . . . . Construction Impeded . | . . . . . . . . . Haulers Reinforced . | . . . . . . . . . Active Scanning Responses . | . . . . . . . . . Cargo Convoy Interrupts . | . . . . . . . . . Stealth | -11 -10 -10 -8 -7 -7 -7 -7 -6 --------- Run | Yrd Mat Sub Mat Fac Low Low Dat Pro Distress Signals 3 | . . . 3 . . . . . Communications Jammed . | . . . . . . . . . Distress Signals . | . . . . . . . . . Times Spotted 98 | . 4 7 36 17 10 9 4 11 Peak Tracking Total 7 | . 2 2 6 4 4 4 4 7 Tactical Retreats 10 | . . . 3 1 . 3 . 3 Traps | -11 -10 -10 -8 -7 -7 -7 -7 -6 ------- Run | Yrd Mat Sub Mat Fac Low Low Dat Pro Traps Triggered 2 | . 2 . . . . . . . Indirectly . | . . . . . . . . . Trap Hack Attempts . | . . . . . . . . . Triggered . | . . . . . . . . . Disarmed . | . . . . . . . . . Reprogrammed . | . . . . . . . . . Reused . | . . . . . . . . . Traps Extracted . | . . . . . . . . . Installed . | . . . . . . . . . Triggered 1 | . . . . . . 1 . . Machines | -11 -10 -10 -8 -7 -7 -7 -7 -6 ---------- Run | Yrd Mat Sub Mat Fac Low Low Dat Pro Machines Disabled 1 | . . . . 1 . . . . Max in Single Turn 1 | . . . . 1 . . . . Garrison Access 2 | . . . 1 1 . . . . Machines Repaired . | . . . . . . . . . Machines Dismantled . | . . . . . . . . . Machines Sabotaged . | . . . . . . . . . Overloaded Fab Kills . | . . . . . . . . . Hacking | -11 -10 -10 -8 -7 -7 -7 -7 -6 --------- Run | Yrd Mat Sub Mat Fac Low Low Dat Pro Machines Accessed 20 | . 2 1 3 10 . . 4 . Terminals 10 | . 2 . 1 7 . . . . Fabricators 1 | . . . . 1 . . . . Repair Stations . | . . . . . . . . . Recycling Units 1 | . . . . 1 . . . . Scanalyzers 1 | . . . 1 . . . . . Garrison Access 2 | . . . 1 1 . . . . Total Hacks 66 | . 5 2 13 18 . . 28 . Successful 48 | . 1 2 7 10 . . 28 . Failed 17 | . 4 . 5 8 . . . . Catastrophic 1 | . . . . 1 . . . . Database Lockouts 1 | . . . 1 . . . . . Manual 18 | . 5 . 2 11 . . . . Terminals 20 | . 5 . 4 11 . . . . Fabricators 4 | . . . . 4 . . . . Repair Stations . | . . . . . . . . . Recycling Units 2 | . . . . 2 . . . . Scanalyzers 6 | . . . 6 . . . . . Garrison Access 4 | . . . 3 1 . . . . Terminal Hacks 34 | . . 2 2 2 . . 28 . Record 13 | . . 2 . . . . 11 . Part Schematic 10 | . . . 1 . . . 9 . Robot Schematic 5 | . . . . . . . 5 . Prototype ID Bank 3 | . . . . . . . 3 . Branch Access Points 1 | . . . . 1 . . . . Terminal Index 1 | . . . 1 . . . . . Registered Components 1 | . . . . 1 . . . . Fabricator Hacks 3 | . . . . 3 . . . . Network Status 1 | . . . . 1 . . . . Load Schematic 1 | . . . . 1 . . . . Build 1 | . . . . 1 . . . . Repair Station Hacks . | . . . . . . . . . Recycling Unit Hacks . | . . . . . . . . . Scanalyzer 4 | . . . 4 . . . . . Insert Component 2 | . . . 2 . . . . . Analyze 2 | . . . 2 . . . . . Garrison Access Hacks 2 | . . . 1 1 . . . . Seal Access 2 | . . . 1 1 . . . . Unauthorized Hacks 5 | . 1 . . 4 . . . . Terminals 3 | . 1 . . 2 . . . . Botnet 3 | . 1 . . 2 . . . . Fabricators . | . . . . . . . . . Repair Stations . | . . . . . . . . . Recycling Units 2 | . . . . 2 . . . . Reject 1 | . . . . 1 . . . . Mask 1 | . . . . 1 . . . . Scanalyzers . | . . . . . . . . . Garrison Access . | . . . . . . . . . Data Cores Recovered . | . . . . . . . . . Used . | . . . . . . . . . Hacking Detections 8 | . 2 . 2 4 . . . . Full Trace Events 3 | . . . 1 2 . . . . Feedback Events . | . . . . . . . . . Feedback Blocked . | . . . . . . . . . Robot Schematics Acquired 5 | . . . . . . . 5 . Robots Built . | . . . . . . . . . Authchips . | . . . . . . . . . Time . | . . . . . . . . . Total Robot Build Rating . | . . . . . . . . . Part Schematics Acquired 12 | . . . 3 . . . 9 . Parts Built 1 | . . . . 1 . . . . Authchips . | . . . . . . . . . Time 73 | . . . . 73 . . . . Total Part Build Rating 3 | . . . . 3 . . . . Parts Repaired . | . . . . . . . . . Time . | . . . . . . . . . Parts Recycled . | . . . . . . . . . Recycled Matter . | . . . . . . . . . Retrieved Matter . | . . . . . . . . . Retrieved Components . | . . . . . . . . . Parts Scanalyzed 2 | . . . 2 . . . . . Part Schematics Acquired 2 | . . . 2 . . . . . Parts Damaged . | . . . . . . . . . Bothacking | -11 -10 -10 -8 -7 -7 -7 -7 -6 ------------ Run | Yrd Mat Sub Mat Fac Low Low Dat Pro Used RIF Installer . | . . . . . . . . . Robots Hacked . | . . . . . . . . . Non-combat . | . . . . . . . . . Combat . | . . . . . . . . . Robot Hacks Applied . | . . . . . . . . . Relay Couplers Released 1 | . . . 1 . . . . . Machine Destruction 1 | . . . 1 . . . . . Fabnet Peak Effective % . | . . . . . . . . . Robots Rewired . | . . . . . . . . . Allies Hacked . | . . . . . . . . . Hacks Repelled . | . . . . . . . . . Allies | -11 -10 -10 -8 -7 -7 -7 -7 -6 -------- Run | Yrd Mat Sub Mat Fac Low Low Dat Pro Total Allies . | . . . . . . . . . Largest Group . | . . . . . . . . . Highest-Rated Group . | . . . . . . . . . Highest-Rated Ally . | . . . . . . . . . Total Orders . | . . . . . . . . . Ally Attacks . | . . . . . . . . . Total Damage . | . . . . . . . . . Kills . | . . . . . . . . . Allies Corrupted . | . . . . . . . . . Allies Melted . | . . . . . . . . . Intel | -11 -10 -10 -8 -7 -7 -7 -7 -6 ------- Run | Yrd Mat Sub Mat Fac Low Low Dat Pro Robot Analysis Total . | . . . . . . . . . Derelict Logs Recovered 2 | . . 1 . . . 1 . . Drone Launches . | . . . . . . . . . Drone Recoveries . | . . . . . . . . . Exploration | -11 -10 -10 -8 -7 -7 -7 -7 -6 ------------- Run | Yrd Mat Sub Mat Fac Low Low Dat Pro Turns Passed 7436 | 70 582 1651 761 1463 1105 1406 323 75 Spaces Moved 3041 | 45 222 418 239 1071 278 437 162 169 Core 30 | 23 . . . 4 . 3 . . Treads 484 | . 5 26 18 223 212 . . . Legs 251 | 22 217 12 . . . . . . Wheels 1218 | . . 380 221 176 66 375 . . Hover 40 | . . . . 40 . . . . Flight 1018 | . . . . 628 . 59 162 169 Fastest Speed 24 | 50 120 120 150 28 210 175 24 40 Average Speed 168 | 117 120 331 177 108 232 188 183 40 Slowest Speed 820 | 250 160 820 395 594 240 400 252 40 Overloaded Moves . | . . . . . . . . . Propulsion Burnouts . | . . . . . . . . . Robots Hopped 6 | . . . . . . . 3 3 Cave-ins Triggered . | . . . . . . . . . Exploration Rate (%) 37 | 3 35 34 34 16 40 63 77 33 Regions Visited 8 Branch Regions 5 Pre-discovered Areas 2 | . . 1 . . . . 1 . Known Exits Taken 1 | . . . . 1 . . . . Unknown Exits Taken 7 | 1 1 1 1 . 1 1 1 . Scrap Searched 2 | . . . . . . 2 . . Spaces Dug 1 | . . . . . 1 . . . Terrain Destroyed 38 | . . . 16 6 13 3 . . Melee . | . . . . . . . . . Projectile 20 | . . . 16 . 1 3 . . AOE 18 | . . . . 6 12 . . . Terrain Rammed . | . . . . . . . . . Walls Destroyed . | . . . . . . . . . Machines Disabled . | . . . . . . . . . Actions | -11 -10 -10 -8 -7 -7 -7 -7 -6 --------- Run | Yrd Mat Sub Mat Fac Low Low Dat Pro Total 4907 | 57 512 554 433 1317 704 971 186 173 Wait 1303 | 2 272 7 76 64 396 481 . 5 Move 3022 | 44 221 417 238 1070 277 436 156 163 Hop 5 | . . . . . . . 2 3 Pick Up 108 | 4 3 26 11 48 3 7 6 . Fast Attach 45 | 6 1 1 6 24 . 2 5 . Attach 38 | . . 6 10 6 1 11 2 2 Detach 4 | . . 1 . 3 . . . . Swap 41 | . 3 4 9 18 4 3 . . Drop 76 | . . 3 12 42 3 2 14 . Fire 251 | 1 12 89 71 29 20 29 . . Melee 8 | . . . . 7 . . 1 . Ram . | . . . . . . . . . Kick . | . . . . . . . . . Crush . | . . . . . . . . . Escape Stasis . | . . . . . . . . . Rewire . | . . . . . . . . . Trap . | . . . . . . . . . Miscellaneous 6 | . . . . 6 . . . . Route ------- -11/Scrapyard -10/Materials (discovered 3 exits: [*Mat] / [*Min] / *Sub) -10/Subcaves -8/Materials -7/Factory (discovered 3 exits: [*Fac] / *Low x2) -7/Lower Caves -7/Lower Caves (discovered 2 exits: [*Fac] / *Dat) -7/Data Miner -6/Proximity Caves History --------- Turn | Location | Event 24 | -11/Scrapyard | Discovered new exit (range 14) 71 | -11/Scrapyard | Entered Materials 183 | -10/Materials | Discovered new exit (range 6) 218 | -10/Materials | Discovered new exit (range 14) 317 | -10/Materials | Build established: Mutant 639 | -10/Materials | Discovered new exit (range 4) 653 | -10/Materials | Entered Subcaves 786 | -10/Subcaves | Lost 3 parts (1n1u1w) 1015 | -10/Subcaves | Learned location of Storage (-9) 1039 | -10/Subcaves | Build established: Hauler-Mutant 1226 | -10/Subcaves | Core integrity fell below 50% 1240 | -10/Subcaves | Core integrity fell below 20% 1266 | -10/Subcaves | Lost 3 parts (1p1n1w) 1995 | -10/Subcaves | Visited Clippyterm 2092 | -10/Subcaves | Shifting Twisted Machinery released Sub. Machine Gun 2117 | -10/Subcaves | Discovered new exit (range 13) 2121 | -10/Subcaves | Shifting Twisted Machinery released Sub. Beam Cannon 2304 | -10/Subcaves | Entered Materials 2304 | -8/Materials | Evolved 4 slots: Propulsion x2, Utility x2 2457 | -8/Materials | Garrison activated, responded to threat 2500 | -8/Materials | Lost 3 parts (1p1n1w) 2696 | -8/Materials | Build established: Scavenger-Mutant 2841 | -8/Materials | Discovered new exit (range 16) 3005 | -8/Materials | Central database locked down 3065 | -8/Materials | Entered Factory 3065 | -7/Factory | Evolved 2 slots: Propulsion x2 3448 | -7/Factory | Discovered new exit (range 7) 3519 | -7/Factory | Identified exit to Lower Caves 3715 | -7/Factory | Fabricated Hacking Suite? 4059 | -7/Factory | Build established: Mutant 4528 | -7/Factory | Entered Lower Caves 4530 | -7/Lower Caves | Attracted the attention of an 0b10 checkpoint 4741 | -7/Lower Caves | Build established: Scavenger-Mutant 5256 | -7/Lower Caves | Ambushed by wild Derelicts 5388 | -7/Lower Caves | Discovered new exit (range 9) 5633 | -7/Lower Caves | Entered another Lower Caves area 5638 | -7/Lower Caves | Discovered new exit (range 13) 5679 | -7/Lower Caves | Attracted the attention of an 0b10 checkpoint 5746 | -7/Lower Caves | Lost 8 parts (1p5n2w) 5931 | -7/Lower Caves | Build established: Mutant 6209 | -7/Lower Caves | Learned 12 Factory zone layouts 7019 | -7/Lower Caves | Discovered new exit (range 6) 7039 | -7/Lower Caves | Entered Data Miner 7040 | -7/Data Miner | Discovered new exit (range 6) 7088 | -7/Data Miner | Met Data Miner 7139 | -7/Data Miner | Learned location of Section 7 (-3) 7139 | -7/Data Miner | Acquired the access code to Warlord's prototype stash 7182 | -7/Data Miner | Received God Mode back door access code from Data Miner 7194 | -7/Data Miner | Build established: Scavenger-Mutant 7331 | -7/Data Miner | Destroyed Data Miner 7336 | -7/Data Miner | Found Prototype Hackware 7341 | -7/Data Miner | Found Prototype Hackware 7344 | -7/Data Miner | Data Conduit disabled 7362 | -7/Data Miner | Entered Proximity Caves 7373 | -6/Proximity Caves | Core integrity fell below 50% 7415 | -6/Proximity Caves | Lost 8 parts (1p5n2u) 7423 | -6/Proximity Caves | Core integrity fell below 20% 7431 | -6/Proximity Caves | Identified Ghost Barrier 7432 | -6/Proximity Caves | Identified Deep Network Scanner 7437 | -6/Proximity Caves | Destroyed by S-27 Virus with Autogun Last Messages --------------- 07350_ Hrd. Medium Armor Plating destroyed. 07354_ Dropped Hrd. Medium Armor Plating. 07354_ Dropped Imp. Light Armor Plating. 07355_ VTOL Module destroyed. 07356_ Dropped Lgt. Angular Momentum Engine. 07357_ Dropped Lightning Gun. 07357_ Dropped Lrg. Storage Unit. 07358_ Flight Unit destroyed. 07360_ Imp. Flight Unit destroyed. LOCATION=UNKNOWN GOAL=ESCAPE 07384_ Lgt. Nuclear Core destroyed. 07384_ C-30 ARC bursts open, deploying its payload. 07384_ S-27 Virus unfolds itself. 07384_ S-27 Virus destroyed. 07385_ Acquired 25 matter. 07421_ System corrupted: Heat flow error (+143). 07431_ Identified Ghost Barrier. 07432_ Identified Deep Network Scanner. Map ----- +----------------------------------------------------+ | ?????????????????????????????????????????????????? | | ?????????????????????????????????????????????????? | | ?????????????????????????????????????????????????? | | ?????????????????????????????????????????????????? | | ?????????????????????????????????????????????????? | | ?????????????????????????????????????????????????? | | ?????????????????????????????????????????????????? | | ?????????????????????????????????????????????????? | | ????????????????###??????????????????????????????? | | ???????###?????## #########???????####????##????? | | ??????? ##????? ??????## ##?## #????# | | ??????? ??????? #????### ### ?????# | | ??????# ????????# #???## "" ???## | | ?????? #????????# ##### "" " #??## | | ?????? #????????# ## """ " " #??## | | ??###?# #????????? """ #### | | ## #?# ?????????????# "" "" # | | ### #????????????## " """" # | | ### #????????????# "" | | ########?????## ### | | #???#### #####?### ### | | ###"######## #???# ## #????##### ## | | ###%##?????# ##### ###### | | "=##????# s s s | | = ##???#### #### ## | | #??????# @ #??# ### | | #??????## #??# ## | | #??????#### ##??# | | # ##?????????# #??# | | # #??????????### #?# | | ## #???????????## ##?# #### | | ?## ???????????## ###??##???### | | ??# ??????????######???????????## | | ??# ???????????????????????????# | | ?? ## ???????????????????????????## ### | | ?? #####?### ????????????????????????????## ##?? | | ??###???????????????????????????????????????###??? | | ?????????????????????????????????????????????????? | | ?????????????????????????????????????????????????? | | ?????????????????????????????????????????????????? | | ?????????????????????????????????????????????????? | | ?????????????????????????????????????????????????? | | ?????????????????????????????????????????????????? | | ?????????????????????????????????????????????????? | | ?????????????????????????????????????????????????? | | ?????????????????????????????????????????????????? | | ?????????????????????????????????????????????????? | | ?????????????????????????????????????????????????? | | ?????????????????????????????????????????????????? | | ?????????????????????????????????????????????????? | +----------------------------------------------------+ Best States ------------- Heat Dissipation 34 Coolant Potential 50 Energy Generation 14 Energy Capacity 275 Matter Stores 300 Matter Capacity 300 Sight Range 21 Terrain Scan Range 14 Terrain Scan Density 210 Additional Mass Support 9 Armor Coverage 675 Evasion (%) 65 Targeting Accuracy 6 Recoil Reduction 4 Offensive Hacking 10 Item Schematics ----------------- Multitool | -8/Materials | Scanalyzed Hrd. Medium Armor Plating | -8/Materials | Scanalyzed Hacking Suite | -8/Materials | Hacked Combat Drone Bay | -7/Data Miner | Free Imp. Heavy Laser | -7/Data Miner | Free Lgt. Regenerative Plating | -7/Data Miner | Free Gravity Neutralizer | -7/Data Miner | Free Biomechanical Wings | -7/Data Miner | Free Cmb. Gravmag System | -7/Data Miner | Free Recoil Nullifier | -7/Data Miner | Free Disruptor Cannon | -7/Data Miner | Free Lgt. Angular Momentum Engine | -7/Data Miner | Free Robot Schematics ------------------ G-50 Soldier | -7/Data Miner | Free H-66 Slayer | -7/Data Miner | Free I-36 Angel | -7/Data Miner | Free R-10 Processor | -7/Data Miner | Free B-60 Warrior | -7/Data Miner | Free Fabricated ------------ Hacking Suite | x1 | -7/Factory Alien Tech Used ----------------- None Achievements -------------- None Challenges ------------ None Game ------ Seed SegregatorGrapheneMachine Manual? 0 Play Time 00:47:57 Cumulative 204.6 hours Start 2024.04.15 @ 17:55:29 End 2024.04.15 @ 18:48:25 Sessions 1 Manual Loads 0 Difficulty Rogue Special Mode None Game No. 166 Rogue 166 Adventurer 0 Explorer 0 Win Type - Total 4 Types 4/0/0/0/0/0/0/0/0 Lore% 70 Gallery% 78 Achievement% 64 Wizard Run 0 Options --------- Layout 2 ASCII 1 Keyboard 0 Movement Mouse Keybinds 0 Fullscreen 2 Font 24/Smallcaps Map View 50x44 Zoom Use 0% Tactical HUD 1 Map Filters NONE Filters NONE Steam 1 RUN: 5190f6de-2051-4f7d-8717-a596099c1ca8